[Event "Titled Tuesday Blitz May 03 Early 2022"]
[White "Coto Mederos, Michel"]
[Black "Bintang, Rasyid A. Hidayat"]
[WhiteFideId "3508528"]
[BlackFideId "7105355"]
[WhiteElo "2427"]
[BlackElo "2434"]
[Result "1-0"]
[Round "11"]
[TimeControl "180+1"]
[Date "2022.05.03"]
[WhiteClock "0:00:33"]
[BlackClock "0:00:38"]

1. c4 {[%clk 0:03:00]}  Nf6 {[%clk 0:02:55]} 2. Nc3 {[%clk 0:03:00]}  e5 {[%clk 0:02:52]} 3. Nf3 {[%clk 0:02:59]}  Nc6 {[%clk 0:02:49]} 4. e4 {[%clk 0:02:59]}  Bc5 {[%clk 0:02:47]} 5. Nxe5 {[%clk 0:02:59]}  Bxf2+ {[%clk 0:02:39]} 6. Kxf2 {[%clk 0:03:00]}  Nxe5 {[%clk 0:02:39]} 7. d4 {[%clk 0:02:59]}  Neg4+ {[%clk 0:02:16]} 8. Kg1 {[%clk 0:02:57]}  d6 {[%clk 0:02:13]} 9. h3 {[%clk 0:02:48]}  Nh6 {[%clk 0:02:12]} 10. Bd3 {[%clk 0:02:39]}  Nhg8 {[%clk 0:02:11]} 11. Kh2 {[%clk 0:02:11]}  Ne7 {[%clk 0:02:09]} 12. Rf1 {[%clk 0:02:12]}  Ng6 {[%clk 0:02:09]} 13. Bg5 {[%clk 0:02:07]}  h6 {[%clk 0:02:07]} 14. Bxf6 {[%clk 0:02:06]}  gxf6 {[%clk 0:02:08]} 15. Nd5 {[%clk 0:02:01]}  O-O {[%clk 0:01:57]} 16. Nxf6+ {[%clk 0:01:54]}  Kg7 {[%clk 0:01:56]} 17. Nh5+ {[%clk 0:01:51]}  Kg8 {[%clk 0:01:56]} 18. Qd2 {[%clk 0:01:47]}  Kh7 {[%clk 0:01:38]} 19. Rf3 {[%clk 0:01:35]}  Qh4 {[%clk 0:01:33]} 20. Nf4 {[%clk 0:01:22]}  Qg5 {[%clk 0:01:07]} 21. Raf1 {[%clk 0:01:17]}  Bd7 {[%clk 0:01:02]} 22. e5 {[%clk 0:01:09]}  dxe5 {[%clk 0:00:59]} 23. Rg3 {[%clk 0:00:47]}  Qxg3+ {[%clk 0:00:42]} 24. Kxg3 {[%clk 0:00:46]}  exf4+ {[%clk 0:00:42]} 25. Rxf4 {[%clk 0:00:40]}  Kg7 {[%clk 0:00:43]} 26. Rf2 {[%clk 0:00:38]}  f5 {[%clk 0:00:40]} 27. Kh2 {[%clk 0:00:37]}  f4 {[%clk 0:00:40]} 28. Bxg6 {[%clk 0:00:35]}  Kxg6 {[%clk 0:00:41]} 29. Rxf4 {[%clk 0:00:36]}  Rfe8 {[%clk 0:00:39]} 30. Qd3+ {[%clk 0:00:35]}  Kg7 {[%clk 0:00:38]} 31. Qg3+ {[%clk 0:00:33]} 1-0


[Site "https://www.chess.com"]

[Event "Titled Tuesday Blitz May 03 Early 2022"]
[White "Dauner, Benedikt"]
[Black "Zhu, Jiner"]
[WhiteFideId "16225899"]
[BlackFideId "8608059"]
[WhiteElo "2230"]
[BlackElo "2281"]
[Result "1-0"]
[Round "11"]
[TimeControl "180+1"]
[Date "2022.05.03"]
[WhiteClock "0:00:11"]
[BlackClock "0:00:02"]

1. b3 {[%clk 0:02:59]}  d5 {[%clk 0:02:54]} 2. Bb2 {[%clk 0:03:00]}  e6 {[%clk 0:02:54]} 3. e3 {[%clk 0:02:59]}  Nf6 {[%clk 0:02:54]} 4. c4 {[%clk 0:02:59]}  Be7 {[%clk 0:02:50]} 5. Nf3 {[%clk 0:02:59]}  O-O {[%clk 0:02:49]} 6. Be2 {[%clk 0:02:59]}  b6 {[%clk 0:02:49]} 7. O-O {[%clk 0:02:59]}  Bb7 {[%clk 0:02:50]} 8. cxd5 {[%clk 0:02:59]}  exd5 {[%clk 0:02:50]} 9. d3 {[%clk 0:02:59]}  Nbd7 {[%clk 0:02:48]} 10. Nbd2 {[%clk 0:02:59]}  Re8 {[%clk 0:02:48]} 11. a3 {[%clk 0:02:59]}  c5 {[%clk 0:02:44]} 12. Re1 {[%clk 0:02:56]}  Bd6 {[%clk 0:02:41]} 13. Nf1 {[%clk 0:02:55]}  Qe7 {[%clk 0:02:28]} 14. Ng3 {[%clk 0:02:55]}  Qe6 {[%clk 0:02:28]} 15. Ng5 {[%clk 0:02:48]}  Qe7 {[%clk 0:02:28]} 16. Nf5 {[%clk 0:02:45]}  Qf8 {[%clk 0:02:28]} 17. Qc2 {[%clk 0:02:21]}  h6 {[%clk 0:02:25]} 18. Nf3 {[%clk 0:02:15]}  Rac8 {[%clk 0:02:20]} 19. Rac1 {[%clk 0:02:13]}  Bb8 {[%clk 0:02:20]} 20. Qb1 {[%clk 0:02:12]}  Ne5 {[%clk 0:02:16]} 21. Qa1 {[%clk 0:02:05]}  Nfd7 {[%clk 0:02:08]} 22. d4 {[%clk 0:01:35]}  Nxf3+ {[%clk 0:02:06]} 23. Bxf3 {[%clk 0:01:36]}  g6 {[%clk 0:02:03]} 24. Ng3 {[%clk 0:01:21]}  cxd4 {[%clk 0:01:56]} 25. Bxd4 {[%clk 0:01:19]}  Ne5 {[%clk 0:01:47]} 26. Be2 {[%clk 0:01:12]}  Qd6 {[%clk 0:01:43]} 27. Rxc8 {[%clk 0:01:10]}  Rxc8 {[%clk 0:01:42]} 28. Rc1 {[%clk 0:01:08]}  Rxc1+ {[%clk 0:01:41]} 29. Qxc1 {[%clk 0:01:09]}  h5 {[%clk 0:01:31]} 30. h3 {[%clk 0:00:48]}  h4 {[%clk 0:01:25]} 31. Nf1 {[%clk 0:00:48]}  Kh7 {[%clk 0:01:22]} 32. Bb2 {[%clk 0:00:44]}  Qc5 {[%clk 0:01:00]} 33. Qd2 {[%clk 0:00:43]}  Nd7 {[%clk 0:00:55]} 34. b4 {[%clk 0:00:40]}  Qe7 {[%clk 0:00:54]} 35. Bb5 {[%clk 0:00:34]}  Ne5 {[%clk 0:00:27]} 36. Qd4 {[%clk 0:00:30]}  Qg5 {[%clk 0:00:14]} 37. Be2 {[%clk 0:00:22]}  Qf5 {[%clk 0:00:09]} 38. f4 {[%clk 0:00:20]}  f6 {[%clk 0:00:07]} 39. fxe5 {[%clk 0:00:18]}  fxe5 {[%clk 0:00:06]} 40. Qxh4+ {[%clk 0:00:19]}  Kg8 {[%clk 0:00:06]} 41. Qd8+ {[%clk 0:00:18]}  Qf8 {[%clk 0:00:05]} 42. Qd7 {[%clk 0:00:14]}  Qf7 {[%clk 0:00:04]} 43. Qxf7+ {[%clk 0:00:11]}  Kxf7 {[%clk 0:00:05]} 44. Bf3 {[%clk 0:00:11]}  Ke6 {[%clk 0:00:05]} 45. Kf2 {[%clk 0:00:11]}  Bc6 {[%clk 0:00:03]} 46. Nd2 {[%clk 0:00:11]}  Bd6 {[%clk 0:00:03]} 47. Bg4+ {[%clk 0:00:11]}  Ke7 {[%clk 0:00:03]} 48. Nf3 {[%clk 0:00:10]}  Kf6 {[%clk 0:00:01]} 49. h4 {[%clk 0:00:10]}  Bb7 {[%clk 0:00:02]} 50. Bh3 {[%clk 0:00:10]}  Ba6 {[%clk 0:00:02]} 51. g4 {[%clk 0:00:10]}  Bd3 {[%clk 0:00:03]} 52. g5+ {[%clk 0:00:11]}  Kg7 {[%clk 0:00:02]} 53. Nxe5 {[%clk 0:00:11]} 1-0


[Site "https://www.chess.com"]

[Event "Titled Tuesday Blitz May 03 Early 2022"]
[White "De Souza, Cristiano Gomes"]
[Black "Van den Dikkenberg, Erik"]
[WhiteFideId "2151758"]
[BlackFideId "1005880"]
[WhiteElo "2068"]
[BlackElo "2118"]
[Result "0-1"]
[Round "11"]
[TimeControl "180+1"]
[Date "2022.05.03"]
[WhiteClock "0:01:33"]
[BlackClock "0:01:02"]

1. d4 {[%clk 0:03:00]}  Nf6 {[%clk 0:02:59]} 2. c4 {[%clk 0:02:58]}  g6 {[%clk 0:02:59]} 3. Nf3 {[%clk 0:02:58]}  Bg7 {[%clk 0:02:59]} 4. Nc3 {[%clk 0:02:58]}  O-O {[%clk 0:03:00]} 5. e4 {[%clk 0:02:57]}  d6 {[%clk 0:03:01]} 6. Be2 {[%clk 0:02:58]}  Na6 {[%clk 0:03:00]} 7. O-O {[%clk 0:02:58]}  e5 {[%clk 0:02:59]} 8. Be3 {[%clk 0:02:57]}  Bg4 {[%clk 0:02:56]} 9. d5 {[%clk 0:02:54]}  Bxf3 {[%clk 0:02:53]} 10. Bxf3 {[%clk 0:02:54]}  Nc5 {[%clk 0:02:53]} 11. b4 {[%clk 0:02:54]}  Na6 {[%clk 0:02:50]} 12. a3 {[%clk 0:02:52]}  Qe7 {[%clk 0:02:49]} 13. Rc1 {[%clk 0:02:51]}  c6 {[%clk 0:02:49]} 14. dxc6 {[%clk 0:02:49]}  bxc6 {[%clk 0:02:49]} 15. b5 {[%clk 0:02:48]}  cxb5 {[%clk 0:02:44]} 16. cxb5 {[%clk 0:02:48]}  Nc5 {[%clk 0:02:43]} 17. Nd5 {[%clk 0:02:47]}  Nxd5 {[%clk 0:02:42]} 18. Qxd5 {[%clk 0:02:47]}  Ne6 {[%clk 0:02:38]} 19. Rc6 {[%clk 0:02:42]}  Rfd8 {[%clk 0:02:35]} 20. Rd1 {[%clk 0:02:41]}  Nd4 {[%clk 0:02:35]} 21. a4 {[%clk 0:02:36]}  Rab8 {[%clk 0:02:26]} 22. Rc4 {[%clk 0:02:26]}  Rbc8 {[%clk 0:02:17]} 23. Rdc1 {[%clk 0:02:25]}  Rxc4 {[%clk 0:02:11]} 24. Rxc4 {[%clk 0:02:24]}  h5 {[%clk 0:02:03]} 25. Kf1 {[%clk 0:02:20]}  Qh4 {[%clk 0:01:57]} 26. Bxd4 {[%clk 0:02:18]}  exd4 {[%clk 0:01:56]} 27. h3 {[%clk 0:02:18]}  Qf4 {[%clk 0:01:49]} 28. Rc7 {[%clk 0:02:16]}  h4 {[%clk 0:01:13]} 29. Ke2 {[%clk 0:02:06]}  Bh6 {[%clk 0:01:08]} 30. Qa2 {[%clk 0:01:59]}  d5 {[%clk 0:01:05]} 31. Rxa7 {[%clk 0:01:33]}  dxe4 {[%clk 0:01:02]} 0-1


[Site "https://www.chess.com"]

[Event "Titled Tuesday Blitz May 03 Early 2022"]
[White "Deac, Bogdan-Daniel"]
[Black "Donchenko, Alexander"]
[WhiteFideId "1226380"]
[BlackFideId "24603295"]
[WhiteElo "2648"]
[BlackElo "2539"]
[Result "1/2-1/2"]
[Round "11"]
[TimeControl "180+1"]
[Date "2022.05.03"]
[WhiteClock "0:00:05"]
[BlackClock "0:00:08"]

1. e4 {[%clk 0:03:00]}  c6 {[%clk 0:02:59]} 2. Nf3 {[%clk 0:03:00]}  d5 {[%clk 0:03:00]} 3. d3 {[%clk 0:03:00]}  dxe4 {[%clk 0:03:00]} 4. dxe4 {[%clk 0:03:01]}  Qxd1+ {[%clk 0:03:01]} 5. Kxd1 {[%clk 0:03:01]}  Nf6 {[%clk 0:03:02]} 6. Nfd2 {[%clk 0:03:02]}  h5 {[%clk 0:03:02]} 7. h4 {[%clk 0:03:01]}  Ng4 {[%clk 0:03:01]} 8. Ke1 {[%clk 0:03:01]}  g6 {[%clk 0:03:00]} 9. Nc4 {[%clk 0:02:58]}  Nd7 {[%clk 0:02:54]} 10. f3 {[%clk 0:02:57]}  Nge5 {[%clk 0:02:54]} 11. Nbd2 {[%clk 0:02:57]}  Bh6 {[%clk 0:02:53]} 12. a4 {[%clk 0:02:54]}  f6 {[%clk 0:02:40]} 13. a5 {[%clk 0:02:50]}  Kf7 {[%clk 0:02:40]} 14. c3 {[%clk 0:02:40]}  Rd8 {[%clk 0:02:38]} 15. Be2 {[%clk 0:02:12]}  Nxc4 {[%clk 0:02:36]} 16. Nxc4 {[%clk 0:02:12]}  Bxc1 {[%clk 0:02:35]} 17. Rxc1 {[%clk 0:02:13]}  Nc5 {[%clk 0:02:21]} 18. b4 {[%clk 0:02:11]}  Ne6 {[%clk 0:02:20]} 19. g3 {[%clk 0:02:09]}  Nc7 {[%clk 0:02:20]} 20. Ne3 {[%clk 0:01:49]}  e5 {[%clk 0:02:16]} 21. Kf2 {[%clk 0:01:42]}  Be6 {[%clk 0:02:16]} 22. Rhd1 {[%clk 0:01:42]}  Ke7 {[%clk 0:02:15]} 23. c4 {[%clk 0:01:39]}  b6 {[%clk 0:02:13]} 24. Rxd8 {[%clk 0:01:36]}  Rxd8 {[%clk 0:02:07]} 25. axb6 {[%clk 0:01:01]}  axb6 {[%clk 0:02:08]} 26. Ra1 {[%clk 0:01:01]}  Ra8 {[%clk 0:02:00]} 27. Rxa8 {[%clk 0:00:54]}  Nxa8 {[%clk 0:02:01]} 28. f4 {[%clk 0:00:52]}  Nc7 {[%clk 0:01:52]} 29. f5 {[%clk 0:00:40]}  Bf7 {[%clk 0:01:52]} 30. c5 {[%clk 0:00:33]}  bxc5 {[%clk 0:01:50]} 31. bxc5 {[%clk 0:00:34]}  gxf5 {[%clk 0:01:43]} 32. Nxf5+ {[%clk 0:00:33]}  Kf8 {[%clk 0:01:43]} 33. Nd6 {[%clk 0:00:27]}  Bg6 {[%clk 0:01:40]} 34. Bc4 {[%clk 0:00:25]}  Ke7 {[%clk 0:01:40]} 35. Ke3 {[%clk 0:00:23]}  Kd7 {[%clk 0:01:30]} 36. g4 {[%clk 0:00:11]}  hxg4 {[%clk 0:01:25]} 37. Be2 {[%clk 0:00:12]}  Bh5 {[%clk 0:01:21]} 38. Nf5 {[%clk 0:00:12]}  Ne6 {[%clk 0:00:53]} 39. Ng3 {[%clk 0:00:11]}  Bg6 {[%clk 0:00:53]} 40. Bxg4 {[%clk 0:00:11]}  Ke7 {[%clk 0:00:53]} 41. Bxe6 {[%clk 0:00:08]}  Kxe6 {[%clk 0:00:54]} 42. Kf3 {[%clk 0:00:09]}  Kf7 {[%clk 0:00:42]} 43. Kg4 {[%clk 0:00:08]}  Kg7 {[%clk 0:00:42]} 44. Nf5+ {[%clk 0:00:07]}  Kf7 {[%clk 0:00:40]} 45. h5 {[%clk 0:00:05]}  Bh7 {[%clk 0:00:40]} 46. Nd6+ {[%clk 0:00:05]}  Ke6 {[%clk 0:00:40]} 47. Kh4 {[%clk 0:00:04]}  Ke7 {[%clk 0:00:39]} 48. h6 {[%clk 0:00:03]}  Ke6 {[%clk 0:00:39]} 49. Kh5 {[%clk 0:00:04]}  Ke7 {[%clk 0:00:39]} 50. Nf5+ {[%clk 0:00:04]}  Ke6 {[%clk 0:00:39]} 51. Nd6 {[%clk 0:00:04]}  Ke7 {[%clk 0:00:39]} 52. Kg4 {[%clk 0:00:04]}  Ke6 {[%clk 0:00:39]} 53. Kf3 {[%clk 0:00:05]}  Ke7 {[%clk 0:00:37]} 54. Ke3 {[%clk 0:00:05]}  Ke6 {[%clk 0:00:32]} 55. Kd3 {[%clk 0:00:05]}  Kd7 {[%clk 0:00:26]} 56. Kc4 {[%clk 0:00:04]}  Ke6 {[%clk 0:00:23]} 57. Kb4 {[%clk 0:00:04]}  f5 {[%clk 0:00:21]} 58. Nxf5 {[%clk 0:00:02]}  Kf6 {[%clk 0:00:21]} 59. Ka5 {[%clk 0:00:02]}  Kg5 {[%clk 0:00:20]} 60. Kb6 {[%clk 0:00:02]}  Bxf5 {[%clk 0:00:19]} 61. exf5 {[%clk 0:00:02]}  Kxh6 {[%clk 0:00:20]} 62. f6 {[%clk 0:00:02]}  e4 {[%clk 0:00:19]} 63. Kxc6 {[%clk 0:00:01]}  e3 {[%clk 0:00:16]} 64. f7 {[%clk 0:00:01]}  Kg7 {[%clk 0:00:16]} 65. f8=Q+ {[%clk 0:00:02]}  Kxf8 {[%clk 0:00:17]} 66. Kb7 {[%clk 0:00:03]}  e2 {[%clk 0:00:17]} 67. c6 {[%clk 0:00:04]}  e1=Q {[%clk 0:00:17]} 68. c7 {[%clk 0:00:05]}  Qb4+ {[%clk 0:00:17]} 69. Ka8 {[%clk 0:00:05]}  Qa5+ {[%clk 0:00:17]} 70. Kb8 {[%clk 0:00:05]}  Qb6+ {[%clk 0:00:17]} 71. Ka8 {[%clk 0:00:06]}  Qc6+ {[%clk 0:00:17]} 72. Kb8 {[%clk 0:00:06]}  Qd6 {[%clk 0:00:17]} 73. Ka8 {[%clk 0:00:06]}  Qa6+ {[%clk 0:00:10]} 74. Kb8 {[%clk 0:00:05]}  Qb6+ {[%clk 0:00:09]} 75. Ka8 {[%clk 0:00:05]}  Qxc7 {[%clk 0:00:08]} 1/2-1/2


[Site "https://www.chess.com"]

[Event "Titled Tuesday Blitz May 03 Early 2022"]
[White "Dubov, Daniil"]
[Black "Kazakouski, Valery"]
[WhiteFideId "24126055"]
[BlackFideId "13507443"]
[WhiteElo "2791"]
[BlackElo "2524"]
[Result "1/2-1/2"]
[Round "11"]
[TimeControl "180+1"]
[Date "2022.05.03"]
[WhiteClock "0:00:23"]
[BlackClock "0:00:14"]

1. e4 {[%clk 0:03:00]}  c5 {[%clk 0:02:57]} 2. Nc3 {[%clk 0:03:01]}  a6 {[%clk 0:02:56]} 3. Nf3 {[%clk 0:03:02]}  e6 {[%clk 0:02:56]} 4. d4 {[%clk 0:03:02]}  b5 {[%clk 0:02:57]} 5. d5 {[%clk 0:03:01]}  d6 {[%clk 0:02:57]} 6. dxe6 {[%clk 0:02:57]}  fxe6 {[%clk 0:02:58]} 7. Ng5 {[%clk 0:02:54]}  Nc6 {[%clk 0:02:52]} 8. f4 {[%clk 0:02:42]}  Be7 {[%clk 0:02:47]} 9. h4 {[%clk 0:02:40]}  Nf6 {[%clk 0:02:45]} 10. g4 {[%clk 0:02:33]}  b4 {[%clk 0:02:35]} 11. Ne2 {[%clk 0:02:27]}  h6 {[%clk 0:02:31]} 12. Nf3 {[%clk 0:02:18]}  Nxe4 {[%clk 0:02:30]} 13. Bg2 {[%clk 0:02:17]}  d5 {[%clk 0:02:30]} 14. O-O {[%clk 0:02:14]}  O-O {[%clk 0:02:29]} 15. Be3 {[%clk 0:02:13]}  Bxh4 {[%clk 0:02:20]} 16. g5 {[%clk 0:02:08]}  hxg5 {[%clk 0:02:16]} 17. fxg5 {[%clk 0:02:08]}  Rxf3 {[%clk 0:01:54]} 18. Rxf3 {[%clk 0:02:07]}  Bxg5 {[%clk 0:01:54]} 19. Ng3 {[%clk 0:02:05]}  Bxe3+ {[%clk 0:01:47]} 20. Rxe3 {[%clk 0:02:06]}  Qg5 {[%clk 0:01:47]} 21. Qe1 {[%clk 0:02:06]}  Nf6 {[%clk 0:01:43]} 22. Rxe6 {[%clk 0:02:01]}  Bxe6 {[%clk 0:01:31]} 23. Qxe6+ {[%clk 0:02:02]}  Kh7 {[%clk 0:01:31]} 24. Qxc6 {[%clk 0:01:26]}  Qe3+ {[%clk 0:01:07]} 25. Kh2 {[%clk 0:01:25]}  Rh8 {[%clk 0:00:44]} 26. Bh3 {[%clk 0:01:12]}  Qf2+ {[%clk 0:00:43]} 27. Kh1 {[%clk 0:01:13]}  Qxg3 {[%clk 0:00:40]} 28. Qe6 {[%clk 0:01:13]}  Qf3+ {[%clk 0:00:29]} 29. Kh2 {[%clk 0:01:11]}  Qf4+ {[%clk 0:00:22]} 30. Kg2 {[%clk 0:01:08]}  Qe4+ {[%clk 0:00:21]} 31. Qxe4+ {[%clk 0:01:07]}  dxe4 {[%clk 0:00:21]} 32. Rh1 {[%clk 0:00:56]}  Rd8 {[%clk 0:00:11]} 33. Kf2 {[%clk 0:00:44]}  Rd2+ {[%clk 0:00:09]} 34. Ke3 {[%clk 0:00:44]}  Rxc2 {[%clk 0:00:09]} 35. Be6+ {[%clk 0:00:43]}  Kg6 {[%clk 0:00:09]} 36. Rg1+ {[%clk 0:00:44]}  Kh6 {[%clk 0:00:08]} 37. Rh1+ {[%clk 0:00:45]}  Nh5 {[%clk 0:00:08]} 38. Kxe4 {[%clk 0:00:33]}  Rxb2 {[%clk 0:00:08]} 39. Bf7 {[%clk 0:00:34]}  g6 {[%clk 0:00:08]} 40. Rg1 {[%clk 0:00:34]}  Re2+ {[%clk 0:00:07]} 41. Kf3 {[%clk 0:00:33]}  Re7 {[%clk 0:00:06]} 42. Bxg6 {[%clk 0:00:33]}  Rg7 {[%clk 0:00:05]} 43. Rc1 {[%clk 0:00:27]}  Rxg6 {[%clk 0:00:05]} 44. Rxc5 {[%clk 0:00:28]}  Rb6 {[%clk 0:00:05]} 45. Ke4 {[%clk 0:00:27]}  Nf6+ {[%clk 0:00:05]} 46. Kd4 {[%clk 0:00:27]}  Kg6 {[%clk 0:00:05]} 47. Ra5 {[%clk 0:00:27]}  Nd7 {[%clk 0:00:04]} 48. Rd5 {[%clk 0:00:27]}  Nf6 {[%clk 0:00:04]} 49. Ra5 {[%clk 0:00:26]}  Kf7 {[%clk 0:00:04]} 50. Kc4 {[%clk 0:00:22]}  Ke6 {[%clk 0:00:04]} 51. Rg5 {[%clk 0:00:19]}  Kd6 {[%clk 0:00:03]} 52. Rg6 {[%clk 0:00:20]}  Ke7 {[%clk 0:00:03]} 53. Rg7+ {[%clk 0:00:20]}  Ke6 {[%clk 0:00:04]} 54. Rg6 {[%clk 0:00:20]}  Kf5 {[%clk 0:00:04]} 55. Rg7 {[%clk 0:00:20]}  Ne4 {[%clk 0:00:04]} 56. Re7 {[%clk 0:00:19]}  Nd6+ {[%clk 0:00:04]} 57. Kc5 {[%clk 0:00:19]}  Kf6 {[%clk 0:00:04]} 58. Kxb6 {[%clk 0:00:12]}  Kxe7 {[%clk 0:00:03]} 59. Kxa6 {[%clk 0:00:13]}  Ke6 {[%clk 0:00:02]} 60. Ka5 {[%clk 0:00:13]}  Kd5 {[%clk 0:00:03]} 61. Kxb4 {[%clk 0:00:13]}  Kc6 {[%clk 0:00:04]} 62. Ka5 {[%clk 0:00:14]}  Kb7 {[%clk 0:00:04]} 63. Kb4 {[%clk 0:00:14]}  Nc8 {[%clk 0:00:05]} 64. Ka4 {[%clk 0:00:15]}  Na7 {[%clk 0:00:05]} 65. Kb4 {[%clk 0:00:16]}  Nc6+ {[%clk 0:00:06]} 66. Kb5 {[%clk 0:00:16]}  Na7+ {[%clk 0:00:07]} 67. Kc5 {[%clk 0:00:17]}  Nc6 {[%clk 0:00:08]} 68. Kb5 {[%clk 0:00:17]}  Na7+ {[%clk 0:00:09]} 69. Kb4 {[%clk 0:00:18]}  Nc6+ {[%clk 0:00:09]} 70. Ka4 {[%clk 0:00:18]}  Na7 {[%clk 0:00:10]} 71. a3 {[%clk 0:00:19]}  Nc6 {[%clk 0:00:11]} 72. Kb3 {[%clk 0:00:20]}  Na7 {[%clk 0:00:12]} 73. Kc4 {[%clk 0:00:21]}  Nc6 {[%clk 0:00:12]} 74. a4 {[%clk 0:00:22]}  Na7 {[%clk 0:00:13]} 75. Kc5 {[%clk 0:00:23]}  Nc6 {[%clk 0:00:14]} 76. a5 {[%clk 0:00:23]}  Nxa5 {[%clk 0:00:14]} 1/2-1/2


[Site "https://www.chess.com"]

[Event "Titled Tuesday Blitz May 03 Early 2022"]
[White "Estrada Nieto, Julian"]
[Black "Vifleemskaia, Svetlana"]
[WhiteFideId "5101018"]
[BlackFideId "4129490"]
[WhiteElo "2252"]
[BlackElo "1901"]
[Result "0-1"]
[Round "11"]
[TimeControl "180+1"]
[Date "2022.05.03"]
[WhiteClock "0:00:32"]
[BlackClock "0:01:00"]

1. e4 {[%clk 0:02:58]}  e5 {[%clk 0:02:59]} 2. Nf3 {[%clk 0:02:58]}  Nc6 {[%clk 0:02:59]} 3. Bb5 {[%clk 0:02:58]}  a6 {[%clk 0:02:59]} 4. Bxc6 {[%clk 0:02:58]}  dxc6 {[%clk 0:02:59]} 5. O-O {[%clk 0:02:59]}  Ne7 {[%clk 0:02:59]} 6. Nxe5 {[%clk 0:02:58]}  Qd4 {[%clk 0:02:59]} 7. Nf3 {[%clk 0:02:58]}  Qxe4 {[%clk 0:02:59]} 8. Re1 {[%clk 0:02:56]}  Qg6 {[%clk 0:02:59]} 9. Ne5 {[%clk 0:02:54]}  Qf5 {[%clk 0:02:57]} 10. d4 {[%clk 0:02:50]}  Be6 {[%clk 0:02:57]} 11. Nc3 {[%clk 0:02:43]}  O-O-O {[%clk 0:02:55]} 12. g4 {[%clk 0:02:39]}  Qf6 {[%clk 0:02:48]} 13. Ne4 {[%clk 0:02:39]}  Qh4 {[%clk 0:02:47]} 14. Bg5 {[%clk 0:02:37]}  Qh3 {[%clk 0:02:26]} 15. Re3 {[%clk 0:02:35]}  Qxe3 {[%clk 0:02:24]} 16. fxe3 {[%clk 0:02:33]}  f6 {[%clk 0:02:23]} 17. Nc5 {[%clk 0:02:26]}  Bg8 {[%clk 0:02:17]} 18. c3 {[%clk 0:02:16]}  fxe5 {[%clk 0:02:11]} 19. Qf3 {[%clk 0:02:12]}  h6 {[%clk 0:01:43]} 20. Bh4 {[%clk 0:02:11]}  g5 {[%clk 0:01:40]} 21. Bg3 {[%clk 0:02:11]}  exd4 {[%clk 0:01:34]} 22. exd4 {[%clk 0:02:11]}  Bd5 {[%clk 0:01:33]} 23. Qe2 {[%clk 0:02:05]}  Ng6 {[%clk 0:01:29]} 24. Rf1 {[%clk 0:02:00]}  Bxc5 {[%clk 0:01:25]} 25. dxc5 {[%clk 0:01:58]}  Rhf8 {[%clk 0:01:25]} 26. Rxf8 {[%clk 0:01:54]}  Rxf8 {[%clk 0:01:22]} 27. c4 {[%clk 0:01:53]}  Bf3 {[%clk 0:01:17]} 28. Qe6+ {[%clk 0:01:52]}  Kb8 {[%clk 0:01:17]} 29. Qxg6 {[%clk 0:01:53]}  Be2 {[%clk 0:01:06]} 30. Qxh6 {[%clk 0:00:32]}  Rf1+ {[%clk 0:01:00]} 0-1


[Site "https://www.chess.com"]

[Event "Titled Tuesday Blitz May 03 Early 2022"]
[White "Ezat, Mohamed"]
[Black "Srihari L R"]
[WhiteFideId "10600906"]
[BlackFideId "46617116"]
[WhiteElo "2386"]
[BlackElo "2121"]
[Result "1-0"]
[Round "11"]
[TimeControl "180+1"]
[Date "2022.05.03"]
[WhiteClock "0:00:16"]
[BlackClock "0:00:02"]

1. d4 {[%clk 0:02:57]}  d5 {[%clk 0:02:54]} 2. c4 {[%clk 0:02:57]}  e6 {[%clk 0:02:53]} 3. Nc3 {[%clk 0:02:57]}  Nf6 {[%clk 0:02:53]} 4. cxd5 {[%clk 0:02:56]}  Nxd5 {[%clk 0:02:52]} 5. e4 {[%clk 0:02:54]}  Nxc3 {[%clk 0:02:52]} 6. bxc3 {[%clk 0:02:55]}  c5 {[%clk 0:02:52]} 7. a3 {[%clk 0:02:56]}  e5 {[%clk 0:02:41]} 8. dxe5 {[%clk 0:02:36]}  Qxd1+ {[%clk 0:02:37]} 9. Kxd1 {[%clk 0:02:37]}  Nc6 {[%clk 0:02:38]} 10. Bb5 {[%clk 0:02:23]}  Bd7 {[%clk 0:02:35]} 11. Nf3 {[%clk 0:02:14]}  Nxe5 {[%clk 0:02:34]} 12. Bxd7+ {[%clk 0:02:14]}  Nxd7 {[%clk 0:02:35]} 13. Kc2 {[%clk 0:02:10]}  Be7 {[%clk 0:02:23]} 14. Rd1 {[%clk 0:02:00]}  O-O-O {[%clk 0:02:22]} 15. Bf4 {[%clk 0:01:58]}  Rhe8 {[%clk 0:02:20]} 16. a4 {[%clk 0:01:29]}  h6 {[%clk 0:02:10]} 17. a5 {[%clk 0:01:28]}  Bf8 {[%clk 0:02:04]} 18. e5 {[%clk 0:01:22]}  Nb8 {[%clk 0:02:03]} 19. Rxd8+ {[%clk 0:01:17]}  Rxd8 {[%clk 0:02:04]} 20. Bg3 {[%clk 0:01:13]}  Nc6 {[%clk 0:01:54]} 21. Nd2 {[%clk 0:01:11]}  Rd7 {[%clk 0:01:40]} 22. Nc4 {[%clk 0:01:11]}  Nd8 {[%clk 0:01:38]} 23. a6 {[%clk 0:00:53]}  b5 {[%clk 0:01:35]} 24. Nb6+ {[%clk 0:00:50]}  axb6 {[%clk 0:01:16]} 25. a7 {[%clk 0:00:50]}  Rxa7 {[%clk 0:01:15]} 26. Rxa7 {[%clk 0:00:50]}  c4 {[%clk 0:01:10]} 27. e6 {[%clk 0:00:45]}  Nxe6 {[%clk 0:01:06]} 28. Rxf7 {[%clk 0:00:44]}  b4 {[%clk 0:01:04]} 29. Be5 {[%clk 0:00:37]}  b5 {[%clk 0:00:53]} 30. f4 {[%clk 0:00:35]}  g6 {[%clk 0:00:38]} 31. g4 {[%clk 0:00:34]}  b3+ {[%clk 0:00:10]} 32. Kb2 {[%clk 0:00:32]}  b4 {[%clk 0:00:09]} 33. f5 {[%clk 0:00:32]}  gxf5 {[%clk 0:00:08]} 34. gxf5 {[%clk 0:00:31]}  Nc5 {[%clk 0:00:06]} 35. Rxf8+ {[%clk 0:00:29]}  Kd7 {[%clk 0:00:06]} 36. Bd4 {[%clk 0:00:21]}  Na4+ {[%clk 0:00:06]} 37. Kb1 {[%clk 0:00:20]}  bxc3 {[%clk 0:00:06]} 38. Ra8 {[%clk 0:00:19]}  c2+ {[%clk 0:00:03]} 39. Kc1 {[%clk 0:00:19]}  b2+ {[%clk 0:00:03]} 40. Bxb2 {[%clk 0:00:17]}  Nc5 {[%clk 0:00:02]} 41. Ba3 {[%clk 0:00:16]} 1-0


[Site "https://www.chess.com"]